Cogmind - Beta 16 @@@ ROGUE MODE // 2026.01.17 @ 01:38:25 Player: Ez3 Result: Destroyed by G-34 Mercenary with Small Laser Performance ------------- Evolutions (0) 0 Regions Visited (2) 400 Robots Destroyed (10) 50 Value Destroyed (84) 84 Prototype IDs (0) 0 Alien Tech Used (0) 0 Bonus (0) 0 TOTAL SCORE: 534 Bonus ------- None Cogmind --------- Core Integrity 0/250 Matter 241/300 Energy 179/250 System Corruption 0% Temperature Danger (426) Movement Walking (190) Ox1 Location -10/Mines Parts ------- > --- POWER (1) -------- Ion Engine > --- PROPULSION (2) --- Aluminum Leg Aluminum Leg > --- UTILITY (2) ------ Small Storage Unit Medium Storage Unit > --- WEAPON (2) ------- Medium Laser Medium Laser > --- INVENTORY (10) --- Light Ion Engine Compact Wheel Medium Laser Mining Laser Mining Laser Peak State ------------ > --- POWER ------------ Light Ion Engine > --- PROPULSION ------- Wheel Wheel > --- UTILITY ---------- Small Storage Unit Medium Storage Unit > --- WEAPON ----------- EM Pulse Gun Plasma Flamer > --- INVENTORY -------- Ion Engine Aluminum Leg Aluminum Leg Compact Wheel Medium Laser Medium Laser Medium Laser Mining Laser Mining Laser [Rating: 11] Favorites ----------- Power Light Ion Engine Engine Light Ion Engine Propulsion Wheel Leg Aluminum Leg Wheel Wheel Utility Small Storage Unit Device Improved Terrain Scanner Storage Small Storage Unit Weapon Medium Laser Energy Gun Medium Laser Special Weapon Plasma Flamer Build | -11 -10 -10 ------- Run | Yrd Mat Min Slots Evolved . | . . . Power . | . . . Propulsion . | . . . Utility . | . . . Weapon . | . . . Parts Attached 19 | 8 4 7 Power 3 | 1 1 1 Engine 3 | 1 1 1 Core . | . . . Reactor . | . . . Propulsion 7 | 2 2 3 Treads . | . . . Leg 2 | . . 2 Wheel 5 | 2 2 1 Hover . | . . . Flight . | . . . Utility 3 | 2 1 . Device 1 | 1 . . Storage 2 | 1 1 . Processor . | . . . Hackware . | . . . Protection . | . . . Artifact . | . . . Weapon 6 | 3 . 3 Energy Gun 5 | 3 . 2 Energy Cannon . | . . . Ballistic Gun . | . . . Ballistic Cannon . | . . . Launcher . | . . . Special Weapon 1 | . . 1 Impact Weapon . | . . . Slashing Weapon . | . . . Piercing Weapon . | . . . Special Melee Weapon . | . . . Unidentified Prototypes . | . . . Parts Lost 9 | . 4 5 Power 1 | . 1 . Propulsion 4 | . 2 2 Utility 1 | . 1 . Weapon 3 | . . 3 Highest Loss Streak 4 | . 3 4 To Critical Strikes . | . . . Average Backups 6 | 4 6 7 Power . | . 1 1 Propulsion 2 | 2 2 2 Utility . | . . . Weapon 3 | 1 2 4 Tool/Special . | . . . Unused Backups 5 | 2 . 3 Power . | . . . Propulsion 2 | 2 . . Utility . | . . . Weapon 3 | . . 3 Tool/Special . | . . . Average Slot Usage (%) 94 | . 92 97 Engine 13 | . 13 14 Wheel 26 | . 26 26 Device 3 | . 6 . Storage 22 | . 16 28 Energy Gun 25 | . 27 24 Special Weapon 1 | . . 2 Peak Build Rating 11 | 9 9 11 Average Rating 7 | 5 7 7 On Entrance 5 | . 9 7 Avg Prop Armor Cover (%) . | . . . Naked Turns . | . . . Heaviest Build 24 | 15 22 24 Greatest Support 26 | 26 26 20 Greatest Overweight (x) 3 | 1 3 2 Average Overweight (x) . | . . . Largest Inventory Capacity 10 | 8 10 10 Average Capacity 8 | 7 8 10 Most Carried 9 | 8 8 9 Average Carried 6 | 5 6 7 Final Capacity 10 | 8 10 10 Final Carried 8 | 8 7 7 Class Distribution -------------------- 100% | Mutant Dominant Class ---------------- Mutant | -10/Materials Mutant | -10/Mines Resources | -11 -10 -10 ----------- Run | Yrd Mat Min Matter Collected 356 | 280 46 30 Remotely . | . . . Salvage Created 227 | 136 46 45 Parts 18 | 8 4 6 Haulers Intercepted . | . . . Recyclers Shooed . | . . . Parts Field Recycled . | . . . Retrieved Matter . | . . . Parts Self-Destructed . | . . . Prevented . | . . . Parts Restored . | . . . Kills | -11 -10 -10 ------- Run | Yrd Mat Min Combat Hostiles Destroyed 4 | . 2 2 Guns 4 | . 2 2 Classes Destroyed 5 | 2 2 1 Worker 1 | . . 1 Tunneler 3 | 3 . . Recycler 1 | 1 . . Watcher 1 | . 1 . Swarmer 4 | . 2 2 Best Kill Streak 4 | 4 2 2 Combat Bots Only 2 | . 2 2 Max Kills in Single Turn 1 | 1 1 1 Gunslinging . | . . . Exploded . | . . . Melee . | . . . Uniques/NPCs Destroyed . | . . . Combat | -11 -10 -10 -------- Run | Yrd Mat Min Hostile Shots Fired 98 | . 41 57 Missed 21 | . 11 10 Hits 77 | . 30 47 Projectile 77 | . 30 47 Critical Strikes 1 | . 1 . Damage Taken 866 | . 287 579 Core 255 | . 44 211 Absorbed by Shields . | . . . Core Remaining (%) 100 | 100 . . Volleys Fired 45 | 11 12 22 Largest 2 | 2 2 2 Hottest 140 | 100 100 140 Shots Fired 81 | 22 24 35 Gun 78 | 22 24 32 Cannon . | . . . Launcher . | . . . Special 3 | . . 3 Kinetic . | . . . Thermal 74 | 22 24 28 Explosive . | . . . Electromagnetic 7 | . . 7 Robot Hit Streak 5 | 5 2 3 Robot Miss Streak 4 | 2 4 4 Penetration Max . | . . . Secondary Targets . | . . . Shots Hit Robots 33 | 12 7 14 Core Hits 14 | 5 3 6 Critical Kills . | . . . Critical Parts Destroyed . | . . . Critical Strikes 5 | 2 3 . Burn 5 | 2 3 . Melee Attacks . | . . . Impact . | . . . Slashing . | . . . Piercing . | . . . Sneak Attacks . | . . . Combat Hostiles . | . . . Follow-up Attacks . | . . . Damage Inflicted 457 | 147 89 221 Guns 445 | 147 89 209 Cannons . | . . . Explosions . | . . . Melee . | . . . Ramming . | . . . Kinetic . | . . . Thermal 385 | 147 89 149 Explosive . | . . . Electromagnetic 72 | . . 72 Impact . | . . . Slashing . | . . . Piercing . | . . . Highest Corruption . | . . . Average Corruption . | . . . Corruption Purged . | . . . Corruption Blocked . | . . . Overload Shots . | . . . Overflow Damage . | . . . Projectiles . | . . . Explosions . | . . . Melee . | . . . Knockbacks . | . . . Impact . | . . . Kinetic . | . . . Secondary . | . . . Self-Inflicted Damage . | . . . Shots . | . . . Rammed . | . . . Targets Rammed . | . . . Kicked . | . . . Crushed . | . . . Highest Temperature 420 | 312 104 420 Average Temperature 140 | 129 45 213 Received Heat Transfer 366 | . 81 285 Effects 3 | . . 3 Interference 2 | . . 2 Damage (minor) 1 | . . 1 Siege Activations . | . . . Martial Activations . | . . . Shielding Activations . | . . . Robots Disrupted . | . . . Combat Hostiles . | . . . Robots Corrupted . | . . . Combat Hostiles . | . . . Parts Fried . | . . . Impact Corruptions . | . . . Robots Melted . | . . . Combat Hostiles . | . . . Parts Melted 2 | 1 1 . Heat Transferred 1560 | 592 481 487 Parts Sabotaged . | . . . Parts Stolen . | . . . Parts Stripped . | . . . Power Chain Reactions . | . . . Alert | -11 -10 -10 ------- Run | Yrd Mat Min Maximum Alert Level . | . . . Low Security (%) 100 | 100 100 100 Level 1 . | . . . Level 2 . | . . . Level 3 . | . . . Level 4 . | . . . Level 5 . | . . . High Security . | . . . Max Security . | . . . Peak Influence 65 | 20 65 45 Initial 5 | . . 5 Average 11 | 3 18 7 Influence Increases 199 | 20 94 85 Destroy 0b10 Robot/C 80 | . 40 40 Destroy 0b10 Robot/NC 30 | 20 5 5 Destroy Leader 12 | . 2 10 Successful Hack 2 | . 2 . Lose Combat Pursuer 75 | . 45 30 Influence Decreases 194 | 20 80 94 Entered New Map 9 | . . 9 Time Decay 155 | 20 70 65 Lost Part 30 | . 10 20 Squads Dispatched 1 | . 1 . Investigation . | . . . Extermination . | . . . Reinforcement 1 | . 1 . Assault . | . . . Garrison . | . . . Intercept . | . . . Searches Triggered . | . . . Construction Impeded . | . . . Haulers Reinforced . | . . . Active Scanning Responses . | . . . Cargo Convoy Interrupts . | . . . Stealth | -11 -10 -10 --------- Run | Yrd Mat Min Distress Signals 1 | . 1 . Communications Jammed . | . . . Distress Signals . | . . . Times Spotted 17 | . 11 6 Peak Tracking Total 6 | . 6 3 Tactical Retreats 4 | . 2 2 Traps | -11 -10 -10 ------- Run | Yrd Mat Min Traps Triggered 2 | . 2 . Indirectly . | . . . Trap Hack Attempts . | . . . Triggered . | . . . Disarmed . | . . . Reprogrammed . | . . . Reused . | . . . Traps Extracted . | . . . Installed . | . . . Triggered . | . . . Machines | -11 -10 -10 ---------- Run | Yrd Mat Min Machines Disabled . | . . . Max in Single Turn . | . . . Machines Repaired . | . . . Machines Dismantled . | . . . Machines Sabotaged . | . . . Overloaded Fab Kills . | . . . Hacking | -11 -10 -10 --------- Run | Yrd Mat Min Machines Accessed 3 | . 3 . Terminals 3 | . 3 . Fabricators . | . . . Repair Stations . | . . . Recycling Units . | . . . Scanalyzers . | . . . Garrison Access . | . . . Total Hacks 8 | . 8 . Successful 7 | . 7 . Failed 1 | . 1 . Catastrophic . | . . . Database Lockouts . | . . . Manual . | . . . Terminals 8 | . 8 . Fabricators . | . . . Repair Stations . | . . . Recycling Units . | . . . Scanalyzers . | . . . Garrison Access . | . . . Terminal Hacks 7 | . 7 . Record 3 | . 3 . Alert Level 2 | . 2 . Investigation Status 1 | . 1 . Hauler Manifests 1 | . 1 . Fabricator Hacks . | . . . Repair Station Hacks . | . . . Recycling Unit Hacks . | . . . Scanalyzer . | . . . Garrison Access Hacks . | . . . Unauthorized Hacks . | . . . Terminals . | . . . Fabricators . | . . . Repair Stations . | . . . Recycling Units . | . . . Scanalyzers . | . . . Garrison Access . | . . . Data Cores Recovered . | . . . Used . | . . . Hacking Detections 1 | . 1 . Full Trace Events . | . . . Feedback Events . | . . . Feedback Blocked . | . . . Robot Schematics Acquired . | . . . Robots Built . | . . . Authchips . | . . . Time . | . . . Total Robot Build Rating . | . . . Part Schematics Acquired . | . . . Parts Built . | . . . Authchips . | . . . Time . | . . . Total Part Build Rating . | . . . Part Studies Acquired . | . . . Parts Repaired . | . . . Time . | . . . Parts Recycled . | . . . Recycled Matter . | . . . Retrieved Matter . | . . . Retrieved Components . | . . . Parts Scanalyzed . | . . . Part Schematics Acquired . | . . . Parts Damaged . | . . . Bothacking | -11 -10 -10 ------------ Run | Yrd Mat Min Used RIF Installer . | . . . Robots Hacked . | . . . Non-combat . | . . . Combat . | . . . Robot Hacks Applied . | . . . Relay Couplers Released . | . . . Fabnet Peak Effective % . | . . . Robots Rewired . | . . . Allies Hacked . | . . . Hacks Repelled . | . . . Allies | -11 -10 -10 -------- Run | Yrd Mat Min Total Allies . | . . . Largest Group . | . . . Highest-Rated Group . | . . . Highest-Rated Ally . | . . . Total Orders . | . . . Ally Attacks . | . . . Total Damage . | . . . Kills . | . . . Allies Corrupted . | . . . Allies Melted . | . . . Intel | -11 -10 -10 ------- Run | Yrd Mat Min Active Infowar (turns) 168 | 22 146 . Terrain 168 | 22 146 . Robot Analysis Total . | . . . Derelict Logs Recovered 2 | . . 2 Drone Launches . | . . . Drone Recoveries . | . . . Exploration | -11 -10 -10 ------------- Run | Yrd Mat Min Turns Passed 777 | 119 305 353 Spaces Moved 613 | 67 282 264 Core 11 | 9 2 . Treads . | . . . Legs 1 | . . 1 Wheels 601 | 58 280 263 Hover . | . . . Flight . | . . . Fastest Speed 50 | 50 80 80 Average Speed 91 | 90 88 94 Slowest Speed 200 | 100 200 190 Overloaded Moves . | . . . Propulsion Burnouts . | . . . Robots Hopped . | . . . Potential Cave-ins . | . . . Cave-ins Triggered . | . . . Exploration Rate (%) 39 | 4 50 65 Regions Visited 2 Branch Regions 1 Pre-discovered Areas 1 | . . 1 Known Exits Taken . | . . . Unknown Exits Taken 2 | 1 1 . Scrap Searched . | . . . Spaces Dug . | . . . Terrain Destroyed . | . . . Melee . | . . . Projectile . | . . . AOE . | . . . Terrain Rammed . | . . . Walls Destroyed . | . . . Machines Disabled . | . . . Actions | -11 -10 -10 --------- Run | Yrd Mat Min Total 744 | 103 310 331 Wait 37 | . 3 34 Move 611 | 66 281 264 Hop . | . . . Pick Up 21 | 15 3 3 Fast Attach 10 | 3 7 . Attach 12 | 4 3 5 Detach . | . . . Swap 4 | 1 . 3 Drop 4 | 3 1 . Fire 45 | 11 12 22 Melee . | . . . Ram . | . . . Kick . | . . . Crush . | . . . Escape Stasis . | . . . Rewire . | . . . Trap . | . . . Miscellaneous . | . . . Route ------- -11/Scrapyard -10/Materials -10/Mines (discovered 1 exit: [*Mat]) History --------- Turn | Location | Event 20 | -11/Scrapyard | Discovered new exit (range 16) 120 | -11/Scrapyard | Entered Materials 299 | -10/Materials | Lost 3 parts (2n1u) 330 | -10/Materials | Build established: Mutant 412 | -10/Materials | Discovered new exit (range 8) 425 | -10/Materials | Entered Mines 449 | -10/Mines | Learned location of Recycling (-7) 488 | -10/Mines | Met a Derelict bent on vengeance 554 | -10/Mines | Learned Materials security intel 554 | -10/Mines | Discovered new exit (range 14) 669 | -10/Mines | A weapon hastily lodged in a ceiling crevice suddenly fell to the ground 736 | -10/Mines | Core integrity fell below 50% 769 | -10/Mines | Core integrity fell below 20% 778 | -10/Mines | Destroyed by G-34 Mercenary with Small Laser Last Messages --------------- 00600_ K-01 Serf collects debris. 00602_ Acquired 14 matter. 00604_ K-01 Serf collects debris. 00605_ Acquired Aluminum Leg. 00611_ R-06 Scavenger collects Lgt. Assault Rifle. 00615_ Acquired EM Pulse Gun. 00620_ R-06 Scavenger collects Lgt. Assault Rifle. 00624_ Acquired 1 matter. 00669_ A Plasma Flamer has been hastily shoved under some rubble with a note attached: "One is never enough." 00671_ Acquired Plasma Flamer. 00733_ Plasma Flamer destroyed. 00741_ EM Pulse Gun destroyed. 00743_ Wheel destroyed. 00768_ K-01 Serf destroyed. 00772_ Overheating: System interference. 00772_ Med. Laser temporarily disabled. 00772_ R-06 Scavenger collects Wheel. 00773_ Overheating: Med. Laser damaged (-14). 00776_ R-06 Scavenger collects Wheel. Map ----- +----------------------------------------------------+ | | | | | | | | | | | | | | | ?????????????????????????????????????????????????? | | ?????????????????????????????????????????????????? | | ???????????????????????????????#####?????????????? | | ??????????????????????????????## ###???????????? | | ??????????????????????????????# ##??????????? | | ?????????????????????????????## #??????????? | | ?????????????????????????????# #???????????? | | ?????????????????????????????# #????????????? | | ????????????????????????????## ##????????????? | | ???????????????????????????## ##?????????????? | | ??????????? ??????????????## ##??????????????? | | ???????????# ??????????#### ##??????????????? | | ???????????# ?????????## ##?????????????? | | ???????????# ?????????# #?????????????? | | ????????#### ##???????# ## ##????????????? | | ????????? ??????## #### #????????????? | | ?????????? ! ?????## ##??## #?????######?? | | ???????????# ????## ##????## ##??## ##? | | ???????????# ????# g @#??????# #### #? | | ???????????# < ##??# g ##??????# ## #?? | | ???????????# #### ##??????## ####?? | | ????????????# %! ##????### ##????? | | ???????????## r #???## ##????? | | ???????????# #### #??# ## #????? | | ???????????# #??# #??# #### #????? | | ???????????## ##?# #??# ##??## #????? | | ????????????## ] #?## #??## ##????# #????? | | ?????????????## #??## #???#####?????# #????? | | ??????????????## #????# ##?????????????# #????? | | ???????????????# #?????##??????????????## ##????? | | ?????????#####?# #???????????????????????##?????? | | ????????## ### #?????????????? ##?????????????? | | ????????# ########????? #?????????????? | | ????????# ## #??? ##????????????? | | ????????# ########## #??# ##???????????? | | ????????# ##??????# ### #???????????? | | ????????# #????### #???????????? | | ????????## #???## #????????????? | | ?????????# ##??## ##????????????? | | ?????????## ##???# ##?????????????? | | ??????????#####????# #??????????????? | | ???????????????????# #?????????????? | | ???????????????????# #?????????????? | +----------------------------------------------------+ Best States ------------- Heat Dissipation 25 Energy Generation 10 Energy Capacity 250 Matter Stores 300 Matter Capacity 300 Sight Range 16 Terrain Scan Range 16 Terrain Scan Density 10 Evasion (%) 44 Item Schematics ----------------- None Robot Schematics ------------------ None Fabricated ------------ Nothing Repaired ---------- Nothing Studied --------- None Alien Tech Used ----------------- None Achievements -------------- Shopping List Challenges ------------ None Game ------ Seed ClaymoresSurveybotProjector Manual? 0 Play Time 00:54:20 Cumulative 8.1 hours Start 2026.01.11 @ 23:09:52 End 2026.01.17 @ 01:38:25 Sessions 9 Manual Loads 0 Difficulty Rogue Special Mode None Game No. 5 Rogue 5 Adventurer 0 Explorer 0 Win Type - Total 0 Types 0/0/0/0/0/0/0/0/0/0 Lore% 0 Gallery% 9 Achievement% 6 Wizard Run 0 Options --------- Layout 0 ASCII 0 Keyboard 1 Movement Vi Keybinds 0 Fullscreen 0 Font 14/SmallcapsGlow Map View 72x54 Zoom Use 0% Tactical HUD 1 Map Filters NONE Filters NONE Steam 0 RUN: e1ccb936-84b2-4781-b485-3b320af36cd1